Workbook

Sheet spc
A1: spc | B1: Grp | C1: a2 | D1: a3 | E1: a2% | F1: a3% | G1: a2% animal | H1: a3% animal | K1: spc | L1: Grp | M1: a1 | N1: a1% | O1: a1% animal | Q1: spc | R1: Grp | S1: a5 | T1: a5%
A2: Total | B2: 15 | D2: 15 | F2: =D2/B2*100 -> 100 | K2: Total | L2: 14 | M2: 2 | N2: =M2/L2*100 -> 14.28571429 | Q2: Total | R2: 9 | S2: 2 | T2: =S2/R2*100 -> 22.22222222
A3: Total | B3: 11 | C3: 7 | D3: 11 | E3: =C3/B3*100 -> 63.63636364 | F3: 100 | K3: Total | L3: 14 | M3: 3 | N3: 21.42857143 | Q3: Total | R3: 11 | S3: 5 | T3: =S3/R3*100 -> 45.45454545
A4: Total | B4: 11 | C4: 8 | D4: 10 | E4: 72.72727273 | F4: 90.90909091 | G4: =AVERAGE(E2:E4) -> 68.18181818 | H4: =AVERAGE(F2:F4) -> 96.96969697 | K4: Total | L4: 14 | M4: 3 | N4: 21.42857143 | O4: =AVERAGE(N2:N4) -> 19.04761905 | Q4: Total | R4: 10 | S4: 3 | T4: 30 | U4: =AVERAGE(T2:T4) -> 32.55892256
A5: Total | B5: 17 | C5: 13 | D5: 17 | E5: 76.47058824 | F5: 100 | K5: Total | L5: 11 | M5: 3 | N5: 27.27272727 | Q5: Total | R5: 10 | S5: 5 | T5: 50
A6: Total | B6: 19 | C6: 12 | D6: 17 | E6: 63.15789474 | F6: 89.47368421 | K6: Total | L6: 11 | M6: 1 | N6: 9.090909091 | Q6: Total | R6: 7 | S6: 3 | T6: 42.85714286
A7: Total | B7: 23 | C7: 16 | D7: 22 | E7: 69.56521739 | F7: 95.65217391 | G7: =AVERAGE(E5:E7) -> 69.73123345 | H7: =AVERAGE(F5:F7) -> 95.04195271 | K7: Total | L7: 8 | M7: 2 | N7: 25 | O7: =AVERAGE(N5:N7) -> 20.45454545 | Q7: Total | R7: 7 | S7: 4 | T7: 57.14285714 | U7: =AVERAGE(T5:T7) -> 50
A8: Total | B8: 17 | C8: 11 | D8: 17 | E8: 64.70588235 | F8: 100 | K8: Total | L8: 11 | M8: 2 | N8: 18.18181818 | Q8: Total | R8: 7 | S8: 3 | T8: 42.85714286
A9: Total | B9: 18 | C9: 11 | D9: 18 | E9: 61.11111111 | F9: 100 | K9: Total | L9: 5 | M9: 2 | N9: 40 | Q9: Total | R9: 7 | S9: 2 | T9: 28.57142857
A10: Total | B10: 12 | C10: 8 | D10: 11 | E10: 66.66666667 | F10: 91.66666667 | K10: Total | L10: 9 | M10: 1 | N10: 11.11111111 | O10: =AVERAGE(N8:N10) -> 23.0976431 | Q10: Total | R10: 10 | S10: 5 | T10: 50
A11: Total | B11: 16 | C11: 6 | D11: 16 | E11: 37.5 | F11: 100 | G11: =AVERAGE(E8:E11) -> 57.49591503 | H11: =AVERAGE(F8:F11) -> 97.91666667 | Q11: Total | R11: 8 | S11: 5 | T11: 62.5 | U11: =AVERAGE(T8:T11) -> 45.98214286
A12: Total | B12: 14 | C12: 8 | D12: 14 | E12: 57.14285714 | F12: 100
A13: Total | B13: 8 | C13: 4 | D13: 8 | E13: 50 | F13: 100
A14: Total | B14: 14 | C14: 7 | D14: 13 | E14: 50 | F14: 92.85714286
A15: Total | B15: 9 | C15: 4 | D15: 9 | E15: 44.44444444 | F15: 100 | G15: =AVERAGE(E12:E15) -> 50.3968254 | H15: =AVERAGE(F12:F15) -> 98.21428571
B22: =SUM(B2:B17) -> 204 | C22: =SUM(C2:C17) -> 115 | D22: =SUM(D2:D17) -> 198 | E22: =AVERAGE(E3:E15) -> 59.77909988 | F22: =AVERAGE(F2:F15) -> 97.18276847 | G22: =AVERAGE(G2:G15) -> 61.45144802 | H22: =AVERAGE(H2:H15) -> 97.03565051 | L22: =SUM(L2:L10) -> 97 | M22: =SUM(M2:M10) -> 19 | N22: =AVERAGE(N2:N10) -> 20.86660253 | O22: =AVERAGE(O2:O10) -> 20.86660253 | R22: =SUM(R2:R11) -> 86 | S22: =SUM(S2:S11) -> 37 | T22: =AVERAGE(T2:T11) -> 43.16053391 | U22: =AVERAGE(U2:U11) -> 42.84702181
C23: =C22/B22*100 -> 56.37254902 | D23: =D22/B22*100 -> 97.05882353 | E23: =STDEV(E3:E15) -> 11.44381611 | F23: =STDEV(F2:F15) -> 4.129642259 | G23: =STDEV(G2:G15) -> 9.159760767 | H23: =STDEV(H2:H15) -> 1.431147699 | M23: =M22/L22*100 -> 19.58762887 | N23: =STDEV(N2:N10) -> 9.415377393 | O23: =STDEV(O2:O10) -> 2.056214235 | S23: =S22/R22*100 -> 43.02325581 | T23: =STDEV(T2:T11) -> 12.87969129 | U23: =STDEV(U2:U11) -> 9.133429454
C25: Grp
C26: a1 | D26: a2 | E26: a3 | F26: a5
C27: 20.86660253 | D27: 59.77909988 | E27: 97.18276847 | F27: 43.16053391
C28: 9.415377393 | D28: 11.44381611 | E28: 4.129642259 | F28: 12.87969129

Sheet DRG
A1: MrgprA3 | B1: a2 | C1: a3 | D1: a2% | E1: a3% | F1: a2%animal | G1: a3%animal | M1: DRG | N1: MrgprA3 | O1: a1 | P1: a1% | Q1: a1% animal | S1: DRG | T1: MrgprA3 | U1: a5 | V1: a5%
A2: 2 | B2: 1 | C2: 0 | D2: =B2/A2*100 -> 50 | E2: =C2/A2*100 -> 0 | N2: 1 | O2: 0 | P2: =O2/N2*100 -> 0 | T2: 2 | U2: 0 | V2: =U2/T2*100 -> 0
A3: 1 | B3: 1 | C3: 1 | D3: =B3/A3*100 -> 100 | E3: =C3/A3*100 -> 100 | N3: 1 | O3: 0 | P3: =O3/N3*100 -> 0 | T3: 1 | U3: 0 | V3: =U3/T3*100 -> 0
A4: 1 | B4: 0 | C4: 0 | D4: 0 | E4: 0 | N4: 1 | O4: 0 | P4: 0 | T4: 1 | U4: 0 | V4: 0
A5: 2 | B5: 0 | C5: 0 | D5: 0 | E5: 0 | N5: 3 | O5: 1 | P5: 33.33333333 | T5: 1 | U5: 0 | V5: 0
A6: 1 | B6: 0 | C6: 0 | D6: 0 | E6: 0 | N6: 1 | O6: 0 | P6: 0 | T6: 1 | U6: 0 | V6: 0
A7: 3 | B7: 2 | C7: 0 | D7: 66.66666667 | E7: 0 | F7: =AVERAGE(D2:D7) -> 36.11111111 | G7: =AVERAGE(E2:E7) -> 16.66666667 | N7: 1 | O7: 0 | P7: 0 | Q7: =AVERAGE(P2:P7) -> 5.555555556 | T7: 1 | U7: 1 | V7: 100
A8: 1 | B8: 0 | C8: 0 | D8: 0 | E8: 0 | N8: 2 | O8: 1 | P8: 50 | T8: 3 | U8: 0 | V8: 0 | W8: =AVERAGE(V2:V9) -> 12.5
A9: 2 | B9: 0 | C9: 0 | D9: 0 | E9: 0 | N9: 2 | O9: 1 | P9: 50 | T9: 1 | U9: 0 | V9: 0
A10: 1 | B10: 1 | C10: 0 | D10: 100 | E10: 0 | N10: 3 | O10: 1 | P10: 33.33333333 | T10: 1 | U10: 0 | V10: 0
A11: 1 | B11: 0 | C11: 0 | D11: 0 | E11: 0 | N11: 1 | O11: 0 | P11: 0 | T11: 1 | U11: 0 | V11: 0
A12: 2 | B12: 1 | C12: 0 | D12: 50 | E12: 0 | N12: 1 | O12: 0 | P12: =O12/N12*100 -> 0 | T12: 2 | U12: 0 | V12: 0
A13: 2 | B13: 0 | C13: 0 | D13: 0 | E13: 0 | N13: 1 | O13: 0 | P13: =O13/N13*100 -> 0 | T13: 1 | U13: 0 | V13: 0
A14: 1 | B14: 0 | C14: 0 | D14: 0 | E14: 0 | F14: =AVERAGE(D8:D14) -> 21.42857143 | G14: =AVERAGE(E8:E14) -> 0 | N14: 1 | O14: 0 | P14: 0 | Q14: =AVERAGE(P8:P14) -> 19.04761905 | T14: 2 | U14: 0 | V14: 0
A15: 1 | B15: 0 | C15: 0 | D15: 0 | E15: 0 | N15: 1 | O15: 0 | P15: 0 | T15: 1 | U15: 0 | V15: 0 | W15: =AVERAGE(V10:V16) -> 0
A16: 2 | B16: 0 | C16: 0 | D16: 0 | E16: 0 | N16: 2 | O16: 1 | P16: =O16/N16*100 -> 50 | T16: 1 | U16: 0 | V16: 0
A17: 1 | B17: 0 | C17: 0 | D17: 0 | E17: 0 | N17: 3 | O17: 1 | P17: 33.33333333 | T17: 1 | U17: 0 | V17: 0
A18: 1 | B18: 0 | C18: 0 | D18: 0 | E18: 0 | N18: 2 | O18: 0 | P18: 0 | T18: 1 | U18: 0 | V18: 0
A19: 1 | B19: 0 | C19: 0 | D19: 0 | E19: 0 | N19: 1 | O19: 0 | P19: 0 | T19: 1 | U19: 0 | V19: 0
A20: 2 | B20: 0 | C20: 0 | D20: 0 | E20: 0 | N20: 1 | O20: 0 | P20: 0 | T20: 1 | U20: 0 | V20: 0
A21: 1 | B21: 1 | C21: 0 | D21: 100 | E21: 0 | F21: =AVERAGE(D15:D21) -> 14.28571429 | G21: =AVERAGE(E15:E21) -> 0 | N21: 1 | O21: 1 | P21: 100 | Q21: =AVERAGE(P15:P21) -> 26.19047619 | T21: 1 | U21: 0 | V21: 0
T22: 1 | U22: 0 | V22: 0
T23: 1 | U23: 0 | V23: 0 | W23: =AVERAGE(V17:V23) -> 0
A25: =SUM(A2:A21) -> 29 | B25: =SUM(B2:B21) -> 7 | C25: =SUM(C2:C21) -> 1 | F25: =AVERAGE(F2:F21) -> 23.94179894 | G25: =AVERAGE(G2:G21) -> 5.555555556 | N25: =SUM(N2:N21) -> 30 | O25: =SUM(O2:O21) -> 7 | P25: =O25/N25*100+AVERAGE(P2:P21) -> 40.83333333 | Q25: =AVERAGE(Q2:Q21) -> 16.93121693 | T25: =SUM(T2:T23) -> 27 | U25: =SUM(U2:U23) -> 1 | W25: =AVERAGE(W2:W23) -> 4.166666667
B26: =B25/A25*100 -> 24.13793103 | C26: =C25/A25*100 -> 3.448275862 | E26: Stdev | F26: =STDEV(F7:F21) -> 11.12763322 | G26: =STDEV(G7:G21) -> 9.622504486 | Q26: =STDEV(Q2:Q21) -> 10.47899594 | W26: =STDEV(W2:W23) -> 7.216878365
E27: SEM | F27: =F26/SQRT(3) -> 6.424542034 | G27: =G26/SQRT(3) -> 5.555555556 | Q27: =Q26/SQRT(3) -> 6.050051125 | W27: =W26/SQRT(3) -> 4.166666667

Sheet GRPR
B1: Grpr | C1: a2 | D1: a3 | E1: a2% | F1: a3% | G1: a2 per animal% | H1: a3% per animal | K1: spc | L1: Grpr | M1: a1 | N1: a1% | Q1: spc | R1: Grpr | S1: a5 | T1: a5%
B2: 10 | C2: 5 | D2: 10 | E2: =C2/B2*100 -> 50 | F2: =D2/B2*100 -> 100 | K2: Total | L2: 10 | M2: 0 | N2: =M2/L2*100 -> 0 | Q2: Total | R2: 12 | S2: 7 | T2: =S2/R2*100 -> 58.33333333
A3: Total | B3: 13 | C3: 9 | D3: 13 | E3: =C3/B3*100 -> 69.23076923 | F3: =D3/B3*100 -> 100 | K3: Total | L3: 8 | M3: 4 | N3: =M3/L3*100 -> 50 | Q3: Total | R3: 8 | S3: 5 | T3: =S3/R3*100 -> 62.5
A4: Total | B4: 11 | C4: 6 | D4: 10 | E4: 54.54545455 | F4: 90.90909091 | K4: Total | L4: 7 | M4: 2 | N4: 28.57142857 | O4: =AVERAGE(N2:N4) -> 26.19047619 | Q4: Total | R4: 6 | S4: 2 | T4: 33.33333333
A5: Total | B5: 10 | C5: 5 | D5: 10 | E5: 50 | F5: 100 | G5: =AVERAGE(E2:E5) -> 55.94405594 | H5: =AVERAGE(F2:F5) -> 97.72727273 | K5: Total | L5: 8 | M5: 2 | N5: 25 | Q5: Total | R5: 1 | S5: 0 | T5: 0 | U5: =AVERAGE(T2:T5) -> 38.54166667
A6: Total | B6: 20 | C6: 12 | D6: 18 | E6: 60 | F6: 90 | K6: Total | L6: 10 | M6: 3 | N6: 30 | Q6: Total | R6: 13 | S6: 8 | T6: 61.53846154
A7: Total | B7: 14 | C7: 10 | D7: 14 | E7: 71.42857143 | F7: 100 | K7: Total | L7: 15 | M7: 1 | N7: 6.666666667 | O7: =AVERAGE(N5:N7) -> 20.55555556 | Q7: Total | R7: 11 | S7: 6 | T7: 54.54545455
A8: Total | B8: 10 | C8: 5 | D8: 10 | E8: 50 | F8: 100 | G8: =AVERAGE(E6:E8) -> 60.47619048 | H8: =AVERAGE(F6:F8) -> 96.66666667 | K8: Total | L8: 12 | M8: 6 | N8: 50 | Q8: Total | R8: 10 | S8: 7 | T8: 70 | U8: =AVERAGE(T6:T8) -> 62.02797203
A9: Total | B9: 15 | C9: 10 | D9: 15 | E9: 66.66666667 | F9: 100 | K9: Total | L9: 2 | M9: 1 | N9: 50 | Q9: Total | R9: 10 | S9: 7 | T9: 70
A10: Total | B10: 14 | C10: 7 | D10: 14 | E10: 50 | F10: 100 | K10: Total | L10: 10 | M10: 2 | N10: 20 | O10: =AVERAGE(N8:N10) -> 40 | Q10: Total | R10: 7 | S10: 1 | T10: 14.28571429
A11: Total | B11: 12 | C11: 9 | D11: 12 | E11: 75 | F11: 100 | G11: =AVERAGE(E9:E11) -> 63.88888889 | H11: =AVERAGE(F9:F11) -> 100 | K11: Total | L11: 12 | M11: 2 | N11: 16.66666667 | Q11: Total | R11: 6 | S11: 3 | T11: 50 | U11: =AVERAGE(T9:T11) -> 44.76190476
A12: Total | B12: 13 | C12: 7 | D12: 13 | E12: 53.84615385 | F12: 100 | K12: Total | L12: 6 | M12: 1 | N12: 16.66666667 | O12: =AVERAGE(N11:N12) -> 16.66666667 | Q12: Total | R12: 7 | S12: 4 | T12: 57.14285714
A13: Total | B13: 14 | C13: 9 | D13: 14 | E13: 64.28571429 | F13: 100 | Q13: Total | R13: 3 | S13: 2 | T13: 66.66666667
A14: Total | B14: 12 | C14: 6 | D14: 12 | E14: =C14/B14*100 -> 50 | F14: =D14/B14*100 -> 100 | Q14: Total | R14: 10 | S14: 9 | T14: 90 | U14: =AVERAGE(T12:T14) -> 71.26984127
A15: Total | B15: 6 | C15: 3 | D15: 4 | E15: 50 | F15: 66.66666667 | G15: =AVERAGE(E12:E15) -> 54.53296703 | H15: =AVERAGE(F12:F15) -> 91.66666667
B16: sum | C16: sum | D16: sum | E16: avg | F16: avg | R16: =SUM(R1:R14) -> 104 | S16: =SUM(S1:S14) -> 61 | T16: =AVERAGE(T1:T14) -> 52.94967853 | U16: =AVERAGE(U1:U14) -> 54.15034618
B17: =SUM(B2:B15) -> 174 | C17: =SUM(C2:C15) -> 103 | D17: 169 | E17: =AVERAGE(E2:E15) -> 58.21452357 | F17: =AVERAGE(F2:F15) -> 96.25541126 | G17: =AVERAGE(G2:G15) -> 58.71052559 | H17: =AVERAGE(H2:H15) -> 96.51515152 | L17: =SUM(L2:L12) -> 100 | M17: =SUM(M2:M12) -> 24 | N17: =AVERAGE(N2:N12) -> 26.68831169 | O17: =AVERAGE(O4:O12) -> 25.8531746 | S17: =S16/R16*100 -> 58.65384615 | T17: =STDEV(T1:T14) -> 24.23576905 | U17: =STDEV(U1:U14) -> 15.13173056
C18: =C17/B17*100 -> 59.1954023 | D18: =D17/B17*100 -> 97.12643678 | E18: =STDEV(E2:E15) -> 9.309309073 | F18: =STDEV(F2:F15) -> 9.187987605 | G18: =STDEV(G2:G15) -> 4.283237434 | H18: =STDEV(H2:H15) -> 3.518719889 | M18: =M17/L17*100 -> 24 | N18: =STDEV(N2:N12) -> 17.33897558 | O18: =STDEV(O4:O12) -> 10.20952393

Sheet Sheet1
G1: a1 | H1: a2 | I1: a3 | J1: a5 | M1: a1 | N1: a2 | O1: a3 | P1: a5 | S1: a1 | T1: a2 | U1: a3 | V1: a5
F2: GRP | G2: 20.86660253 | H2: 61.45144802 | I2: 97.03565051 | J2: 42.84702181 | L2: GRPR | M2: 25.8531746 | N2: 58.71052559 | O2: 96.51515152 | P2: 54.15034618 | R2: MrgprA3 | S2: 16.93121693 | T2: 23.94179894 | U2: 5.555555556 | V2: 4.166666667
G3: 2.056214235 | H3: 9.159760767 | I3: 1.431147699 | J3: 9.133429454 | M3: 10.20952393 | N3: 4.283237434 | O3: 3.518719889 | P3: 15.13173056 | S3: 10.47899594 | T3: 11.12763322 | U3: 9.622504486 | V3: 7.216878365
A6: Grp
A7: a1 | B7: a2 | C7: a3 | D7: a5
A8: 20.86660253 | B8: 59.77909988 | C8: 97.18276847 | D8: 43.16053391
A9: 9.415377393 | B9: 11.44381611 | C9: 4.129642259 | D9: 12.87969129
